Cogmind - Beta 16 @@@ ROGUE MODE // 2025.12.13 @ 10:43:15 Player: Singularius Result: Destroyed by as-79599 with Assembled Rifle Performance ------------- Evolutions (0) 0 Regions Visited (2) 400 Robots Destroyed (23) 115 Value Destroyed (401) 401 Prototype IDs (4) 80 Alien Tech Used (0) 0 Bonus (0) 0 TOTAL SCORE: 996 Bonus ------- None Cogmind --------- Core Integrity 0/250 Matter 146/300 Energy 100/100 System Corruption 0% Temperature Cool (0) Movement Core (450) Ox8 Location -10/Mines Parts ------- > --- POWER (1) -------- (None) > --- PROPULSION (2) --- Aluminum Leg > --- UTILITY (2) ------ Large Storage Unit Hardened Light Armor Plating > --- WEAPON (2) ------- (None) > --- INVENTORY (15) --- Ion Engine Light Ion Engine Light Nuclear Core Light Treads Improved Heat Sink Structural Scanner Seismic Detector Targeting Computer Particle Gun Autogun Autogun Mining Laser Peak State ------------ > --- POWER ------------ Ion Engine > --- PROPULSION ------- Light Treads Light Treads > --- UTILITY ---------- Large Storage Unit Hardened Light Armor Plating > --- WEAPON ----------- Particle Gun Autogun > --- INVENTORY -------- Ion Engine Light Ion Engine Light Nuclear Core Aluminum Leg Aluminum Leg Improved Heat Sink Cooling System Structural Scanner Seismic Detector Targeting Computer Hardened Light Armor Plating Hardened Light Armor Plating Autogun Autogun Grenade Launcher [Rating: 12] Favorites ----------- Power Ion Engine Engine Ion Engine Propulsion Light Treads Treads Light Treads Leg Aluminum Leg Utility Seismic Detector Device Seismic Detector Storage Large Storage Unit Protection Hardened Light Armor Plating Weapon Light Assault Rifle Energy Gun Particle Gun Ballistic Gun Light Assault Rifle Launcher Grenade Launcher Build | -11 -10 -10 ------- Run | Yrd Mat Min Slots Evolved . | . . . Power . | . . . Propulsion . | . . . Utility . | . . . Weapon . | . . . Parts Attached 19 | 7 7 5 Power 2 | 1 1 . Engine 2 | 1 1 . Core . | . . . Reactor . | . . . Propulsion 5 | 2 1 2 Treads 3 | 2 1 . Leg 2 | . . 2 Wheel . | . . . Hover . | . . . Flight . | . . . Utility 7 | 2 3 2 Device 1 | 1 . . Storage 3 | 1 2 . Processor . | . . . Hackware . | . . . Protection 3 | . 1 2 Artifact . | . . . Weapon 5 | 2 2 1 Energy Gun 1 | . 1 . Energy Cannon . | . . . Ballistic Gun 3 | 2 1 . Ballistic Cannon . | . . . Launcher 1 | . . 1 Special Weapon . | . . . Impact Weapon . | . . . Slashing Weapon . | . . . Piercing Weapon . | . . . Special Melee Weapon . | . . . Unidentified Prototypes . | . . . Parts Lost 8 | . 2 6 Power 2 | . 1 1 Propulsion 3 | . 1 2 Utility 1 | . . 1 Weapon 2 | . . 2 Highest Loss Streak 6 | . 1 6 To Critical Strikes 1 | . 1 . Average Backups 10 | 3 11 14 Power 2 | . 2 3 Propulsion 2 | 1 2 1 Utility 3 | . 4 5 Weapon 2 | . 2 4 Tool/Special . | . . . Unused Backups 17 | . 9 8 Power 4 | . 1 3 Propulsion 1 | . 1 . Utility 7 | . 4 3 Weapon 5 | . 3 2 Tool/Special . | . . . Average Slot Usage (%) 99 | . 99 93 Engine 13 | . 13 12 Treads 27 | . 28 24 Device 12 | . 13 3 Storage 14 | . 14 14 Protection 1 | . . 11 Energy Gun 12 | . 12 9 Ballistic Gun 14 | . 15 11 Peak Build Rating 12 | 7 12 12 Average Rating 9 | 5 9 10 On Entrance 6 | . 7 11 Avg Prop Armor Cover (%) . | . . . Naked Turns . | . . . Heaviest Build 36 | 13 34 36 Greatest Support 40 | 40 40 40 Greatest Overweight (x) 8 | 3 . 8 Average Overweight (x) . | . . . Largest Inventory Capacity 15 | 8 15 15 Average Capacity 12 | 7 12 15 Most Carried 15 | 4 15 15 Average Carried 10 | 3 11 14 Final Capacity 15 | 8 15 15 Final Carried 15 | 4 15 12 Class Distribution -------------------- 100% | Mutant Dominant Class ---------------- Mutant | -10/Materials Mutant | -10/Mines Resources | -11 -10 -10 ----------- Run | Yrd Mat Min Matter Collected 480 | 259 221 . Remotely . | . . . Salvage Created 621 | 100 445 76 Parts 53 | 17 30 6 Haulers Intercepted 1 | . 1 . Recyclers Shooed . | . . . Parts Field Recycled . | . . . Retrieved Matter . | . . . Parts Self-Destructed . | . . . Prevented . | . . . Parts Restored . | . . . Kills | -11 -10 -10 ------- Run | Yrd Mat Min Combat Hostiles Destroyed 25 | . 10 15 Guns 10 | . 10 . AOE 15 | . . 15 Classes Destroyed 8 | 1 6 1 Worker 1 | . 1 . Tunneler 6 | 6 . . Hauler 1 | . 1 . Operator 1 | . 1 . Watcher 1 | . 1 . Swarmer 6 | . 3 3 Grunt 7 | . 7 . Assembled 12 | . . 12 Best Kill Streak 12 | 3 4 12 Combat Bots Only 12 | . 4 12 Max Kills in Single Turn 5 | 1 1 5 Gunslinging . | . . . Exploded 5 | . . 5 Melee . | . . . Uniques/NPCs Destroyed . | . . . Combat | -11 -10 -10 -------- Run | Yrd Mat Min Hostile Shots Fired 142 | . 57 85 Missed 38 | . 17 21 Hits 104 | . 40 64 Melee 21 | . . 21 Projectile 83 | . 40 43 Critical Strikes 3 | . 1 2 Part Disruptions 3 | . . 3 Damage Taken 1666 | . 458 1208 Core 258 | . 60 198 Absorbed by Shields . | . . . Regen/Repaired (Parts) 12 | . 12 . Core Remaining (%) 100 | 100 . . Volleys Fired 66 | 22 33 11 Largest 2 | 2 2 2 Hottest 88 | 40 88 88 Shots Fired 122 | 44 66 12 Gun 112 | 44 66 2 Cannon . | . . . Launcher 10 | . . 10 Special . | . . . Kinetic 95 | 44 50 1 Thermal 17 | . 16 1 Explosive 10 | . . 10 Electromagnetic . | . . . Robot Hit Streak 8 | 4 8 4 Robot Miss Streak 3 | 3 2 3 Penetration Max . | . . . Secondary Targets 3 | . 3 . Max Gunslinging Chain 1 | . 1 . Shots Hit Robots 71 | 26 40 5 Core Hits 64 | 11 23 30 Critical Kills 1 | . 1 . Critical Parts Destroyed . | . . . Critical Strikes 1 | . 1 . Destroy 1 | . 1 . Melee Attacks . | . . . Impact . | . . . Slashing . | . . . Piercing . | . . . Sneak Attacks . | . . . Combat Hostiles . | . . . Follow-up Attacks . | . . . Damage Inflicted 1448 | 221 432 795 Guns 683 | 221 432 30 Cannons . | . . . Explosions 765 | . . 765 Melee . | . . . Ramming . | . . . Kinetic 513 | 221 280 12 Thermal 170 | . 152 18 Explosive 765 | . . 765 Electromagnetic . | . . . Impact . | . . . Slashing . | . . . Piercing . | . . . Highest Corruption . | . . . Average Corruption . | . . . Corruption Purged . | . . . Corruption Blocked . | . . . Overload Shots . | . . . Overflow Damage 6 | . . 6 Projectiles . | . . . Explosions 6 | . . 6 Melee . | . . . Knockbacks . | . . . Impact . | . . . Kinetic . | . . . Secondary . | . . . Self-Inflicted Damage 80 | . . 80 Shots 3 | . . 3 Rammed . | . . . Targets Rammed . | . . . Kicked . | . . . Crushed . | . . . Highest Temperature 264 | . 264 85 Average Temperature 70 | . 78 46 Received Heat Transfer 536 | . 216 320 Siege Activations . | . . . Martial Activations . | . . . Shielding Activations . | . . . Robots Disrupted . | . . . Combat Hostiles . | . . . Robots Corrupted . | . . . Combat Hostiles . | . . . Parts Fried . | . . . Impact Corruptions . | . . . Robots Melted . | . . . Combat Hostiles . | . . . Parts Melted 1 | . 1 . Heat Transferred 407 | . 370 37 Parts Sabotaged . | . . . Parts Stolen . | . . . Parts Stripped . | . . . Power Chain Reactions . | . . . Alert | -11 -10 -10 ------- Run | Yrd Mat Min Maximum Alert Level . | . . . Low Security (%) 100 | 100 100 100 Level 1 . | . . . Level 2 . | . . . Level 3 . | . . . Level 4 . | . . . Level 5 . | . . . High Security . | . . . Max Security . | . . . Peak Influence 89 | 10 70 89 Initial 8 | . . 8 Average 13 | 1 11 49 Influence Increases 444 | 30 285 129 Destroy 0b10 Robot/C 260 | . 200 60 Destroy 0b10 Robot/NC 50 | 30 20 . Destroy Leader 54 | . 44 10 Successful Hack 21 | . 21 . Destroy Structure 59 | . . 59 Influence Decreases 425 | 30 263 132 Entered New Map 14 | . . 14 Time Decay 331 | 30 243 58 Lost Part 80 | . 20 60 Squads Dispatched 1 | . 1 . Investigation . | . . . Extermination . | . . . Reinforcement 1 | . 1 . Assault . | . . . Garrison . | . . . Intercept . | . . . Searches Triggered . | . . . Construction Impeded . | . . . Haulers Reinforced . | . . . Active Scanning Responses . | . . . Cargo Convoy Interrupts . | . . . Stealth | -11 -10 -10 --------- Run | Yrd Mat Min Distress Signals 2 | . 2 . Communications Jammed . | . . . Distress Signals . | . . . Times Spotted 43 | . 21 22 Peak Tracking Total 20 | . 5 20 Tactical Retreats 1 | . . 1 Traps | -11 -10 -10 ------- Run | Yrd Mat Min Traps Triggered . | . . . Indirectly . | . . . Trap Hack Attempts . | . . . Triggered . | . . . Disarmed . | . . . Reprogrammed . | . . . Reused . | . . . Traps Extracted . | . . . Installed . | . . . Triggered . | . . . Machines | -11 -10 -10 ---------- Run | Yrd Mat Min Machines Disabled . | . . . Max in Single Turn . | . . . Machines Repaired . | . . . Machines Dismantled . | . . . Machines Sabotaged . | . . . Overloaded Fab Kills . | . . . Hacking | -11 -10 -10 --------- Run | Yrd Mat Min Machines Accessed 10 | . 10 . Terminals 7 | . 7 . Fabricators . | . . . Repair Stations 1 | . 1 . Recycling Units 2 | . 2 . Scanalyzers . | . . . Garrison Access . | . . . Total Hacks 25 | . 25 . Successful 15 | . 15 . Failed 9 | . 9 . Catastrophic . | . . . Database Lockouts 1 | . 1 . Manual 10 | . 10 . Terminals 21 | . 21 . Fabricators . | . . . Repair Stations 2 | . 2 . Recycling Units 2 | . 2 . Scanalyzers . | . . . Garrison Access . | . . . Terminal Hacks 8 | . 8 . Prototype ID Bank 3 | . 3 . Locate Traps 3 | . 3 . Registered Components 1 | . 1 . Zone Layout 1 | . 1 . Fabricator Hacks . | . . . Repair Station Hacks 2 | . 2 . Scan Component 1 | . 1 . Repair 1 | . 1 . Recycling Unit Hacks 2 | . 2 . Report Inventory 2 | . 2 . Scanalyzer . | . . . Garrison Access Hacks . | . . . Unauthorized Hacks 3 | . 3 . Terminals 3 | . 3 . Botnet 3 | . 3 . Fabricators . | . . . Repair Stations . | . . . Recycling Units . | . . . Scanalyzers . | . . . Garrison Access . | . . . Data Cores Recovered 1 | . 1 . Used . | . . . Hacking Detections 7 | . 7 . Full Trace Events . | . . . Feedback Events . | . . . Feedback Blocked . | . . . Robot Schematics Acquired . | . . . Robots Built . | . . . Authchips . | . . . Time . | . . . Total Robot Build Rating . | . . . Part Schematics Acquired . | . . . Parts Built . | . . . Authchips . | . . . Time . | . . . Total Part Build Rating . | . . . Part Studies Acquired . | . . . Parts Repaired 1 | . 1 . Time 38 | . 38 . Parts Recycled . | . . . Recycled Matter . | . . . Retrieved Matter . | . . . Retrieved Components . | . . . Parts Scanalyzed . | . . . Part Schematics Acquired . | . . . Parts Damaged . | . . . Bothacking | -11 -10 -10 ------------ Run | Yrd Mat Min Used RIF Installer . | . . . Robots Hacked . | . . . Non-combat . | . . . Combat . | . . . Robot Hacks Applied . | . . . Relay Couplers Released . | . . . Fabnet Peak Effective % . | . . . Robots Rewired . | . . . Allies Hacked . | . . . Hacks Repelled . | . . . Allies | -11 -10 -10 -------- Run | Yrd Mat Min Total Allies . | . . . Largest Group . | . . . Highest-Rated Group . | . . . Highest-Rated Ally . | . . . Total Orders . | . . . Ally Attacks . | . . . Total Damage . | . . . Kills . | . . . Allies Corrupted . | . . . Allies Melted . | . . . Intel | -11 -10 -10 ------- Run | Yrd Mat Min Active Infowar (turns) 1345 | 9 1310 26 Seismic 1345 | 9 1310 26 Robot Analysis Total . | . . . Derelict Logs Recovered . | . . . Drone Launches . | . . . Drone Recoveries . | . . . Exploration | -11 -10 -10 ------------- Run | Yrd Mat Min Turns Passed 1756 | 245 1373 138 Spaces Moved 803 | 108 633 62 Core 10 | 9 . 1 Treads 783 | 99 633 51 Legs 10 | . . 10 Wheels . | . . . Hover . | . . . Flight . | . . . Fastest Speed 50 | 50 160 160 Average Speed 160 | 158 160 172 Slowest Speed 450 | 200 160 450 Overloaded Moves . | . . . Propulsion Burnouts . | . . . Robots Hopped . | . . . Potential Cave-ins . | . . . Cave-ins Triggered . | . . . Exploration Rate (%) 39 | 5 98 16 Regions Visited 2 Branch Regions 1 Pre-discovered Areas . | . . . Known Exits Taken . | . . . Unknown Exits Taken 2 | 1 1 . Scrap Searched . | . . . Spaces Dug . | . . . Terrain Destroyed 68 | . . 68 Melee . | . . . Projectile . | . . . AOE 68 | . . 68 Terrain Rammed . | . . . Walls Destroyed . | . . . Machines Disabled . | . . . Actions | -11 -10 -10 --------- Run | Yrd Mat Min Total 1168 | 144 942 82 Wait 231 | 4 226 1 Move 801 | 107 632 62 Hop . | . . . Pick Up 29 | 4 25 . Fast Attach 7 | 7 . . Attach 5 | . 2 3 Detach . | . . . Swap 15 | . 10 5 Drop 14 | . 14 . Fire 66 | 22 33 11 Melee . | . . . Ram . | . . . Kick . | . . . Crush . | . . . Escape Stasis . | . . . Rewire . | . . . Trap . | . . . Miscellaneous . | . . . Route ------- -11/Scrapyard -10/Materials (discovered 5 exits: [*Mat x3] / [*Min x2]) -10/Mines History --------- Turn | Location | Event 21 | -11/Scrapyard | Discovered new exit (range 15) 246 | -11/Scrapyard | Entered Materials 315 | -10/Materials | Build established: Mutant 461 | -10/Materials | Discovered new exit (range 16) 548 | -10/Materials | Central database locked down 853 | -10/Materials | Discovered new exit (range 10) 1006 | -10/Materials | Discovered new exit (range 8) 1152 | -10/Materials | Repaired Imp. Heat Sink 1240 | -10/Materials | Discovered new exit (range 9) 1305 | -10/Materials | Discovered new exit (range 10) 1619 | -10/Materials | Entered Mines 1620 | -10/Mines | Met a Derelict bent on vengeance 1677 | -10/Mines | Assembled infested the area 1682 | -10/Mines | Assisted by a Guerilla fighting off Assembled 1735 | -10/Mines | Core integrity fell below 50% 1748 | -10/Mines | Core integrity fell below 20% 1750 | -10/Mines | Destroyed 12 combat bots 1757 | -10/Mines | Destroyed by as-79599 with Assembled Rifle Last Messages --------------- 01710_ as-81015 destroyed. 01710_ as-08103 destroyed. 01710_ as-84553 destroyed. 01712_ as-81163 destroyed. 01714_ as-56126 destroyed. 01718_ The unstable cave ceiling collapses. 01729_ as-76491 destroyed. 01729_ as-29123 destroyed. 01730_ Lgt. Treads destroyed. 01731_ Hrd. Light Armor Plating destroyed. 01733_ The unstable cave ceiling collapses. 01734_ Grenade Launcher destroyed. 01735_ Autogun destroyed. 01736_ The unstable cave ceiling collapses. 01736_ Ion Engine destroyed. 01741_ Hrd. Light Armor Plating severed. 01753_ Aluminum Leg destroyed. 01754_ The unstable cave ceiling collapses. 01756_ as-12727 sneak attacks. 01756_ R-06 Scavenger destroyed. Map ----- +----------------------------------------------------+ | ?????????????????????????????????? | | ?????????????????????????????????? | | ?????????????????????????????????? | | ?????????????????????????????????? | | ?????????????????????????????????? | | ?????????????????????????????????? | | ?????????????????????????????????? | | ?????????????????????????????????? | | ?????????????????????????????????? | | ?????????????????????????????????? | | ?????????????????????????????????? | | ????????????????????????####?????? | | ???????????????????????## ###???? | | ?????????????????###???# ##??? | | ????????????????? #???# #??? | | ?????????????????# #???# #??? | | ?????????????????# #??## ##??? | | ?????????????????# #?## #??? | | ????????????????## ### !!! #??? | | ???????????????## ## # ! #??? | | ???????????????# # ! ! #??? | | ???????????????# ## !!! #??? | | ???????????????## ##### #??? | | ????????????????####??## #####??? | | ?????????????????????## r #?????? | | ?????????????????????# @ #?????? | | ?????????????????????# a #?????? | | ?????????????????????# aa= #?????? | | ????????????????????## ! ##?????? | | ????????????????????# #?????? | | ????????????????????# aa##?????? | | ????????????????????## ##????? | | ?????????????????????# a #????? | | ?????????????????????# ##????? | | ?????????????????????## [ ##???? | | ?????????????????????# [ #???? | | ?????????????????###?# #???? | | ????????????????## ##a% ##???? | | ????????######### #????? | | ????????# % #????? | | ????????# ###### # ##????? | | ????????????????## #####?????? | | ?????????????????## #?????????? | | ??????????????????# #?????????? | | ?????????????????## #?????????? | | ????????????????# #?????????? | | ??????????????# # ?????????? | | ??????????????# #????????? | | ?????????????# ????????? | | ?????????????# # ##???????? | +----------------------------------------------------+ Best States ------------- Heat Dissipation 25 Energy Generation 10 Energy Capacity 250 Matter Stores 300 Matter Capacity 300 Sight Range 16 Terrain Scan Density 10 Armor Coverage 150 Evasion (%) 40 Recoil Reduction 2 Item Schematics ----------------- None Robot Schematics ------------------ None Fabricated ------------ Nothing Repaired ---------- Imp. Heat Sink | 70% | -10/Materials Studied --------- None Alien Tech Used ----------------- None Achievements -------------- DATA ERROR: Steam Global Achievement% Organ Harvest Challenges ------------ None Game ------ Seed ArmoredUltimateRigger Manual? 0 Play Time 00:24:09 Cumulative 135.1 hours Start 2025.11.15 @ 18:24:39 End 2025.12.13 @ 10:43:15 Sessions 3 Manual Loads 0 Difficulty Rogue Special Mode None Game No. 84 Rogue 84 Adventurer 0 Explorer 0 Win Type - Total 0 Types 0/0/0/0/0/0/0/0/0/0 Lore% 53 Gallery% 44 Achievement% 20 Wizard Run 0 Options --------- Layout 1 ASCII 0 Keyboard 0 Movement Numpad Keybinds 0 Fullscreen 1 Font 32/SmallcapsGlow Map View 50x35 Zoom Use 0% Tactical HUD 1 Map Filters NONE Filters NONE Steam 1 RUN: 1977e9ce-35a6-4ec3-b011-367fb28e8385